[Event "*** Titled Tuesday Blitz"]
[Site "Chess.com"]
[Date "2021.04.06"]
[Round "4"]
[White "2Tilted"]
[Black "Yaryi_sergey"]
[Result "1/2-1/2"]
[WhiteElo "2328"]
[BlackElo "2526"]
[TimeControl "180+1"]
[EndTime "10:39:53 PDT"]
[Termination "Game drawn by repetition"]

1. e4 {[%clk 0:03:00.9]} 1... c6 {[%clk 0:02:59.3]} 2. Nf3 {[%clk 0:03:00.3]}
2... g6 {[%clk 0:02:58.3]} 3. d4 {[%clk 0:02:56]} 3... Na6 {[%clk 0:02:58.1]} 4.
Nc3 {[%clk 0:02:54.8]} 4... Nc7 {[%clk 0:02:57.8]} 5. Be3 {[%clk 0:02:50.7]}
5... Bg7 {[%clk 0:02:56.8]} 6. Qd2 {[%clk 0:02:50.4]} 6... d5 {[%clk 0:02:56]}
7. h3 {[%clk 0:02:42.4]} 7... dxe4 {[%clk 0:02:54.7]} 8. Nxe4 {[%clk 0:02:41.8]}
8... Nd5 {[%clk 0:02:55.6]} 9. Bc4 {[%clk 0:02:26.9]} 9... Nxe3 {[%clk
0:02:54.1]} 10. Qxe3 {[%clk 0:02:27.8]} 10... Nf6 {[%clk 0:02:54.8]} 11. O-O-O
{[%clk 0:02:12.5]} 11... Nxe4 {[%clk 0:02:53]} 12. Qxe4 {[%clk 0:02:12.8]} 12...
Bf5 {[%clk 0:02:52.8]} 13. Qe3 {[%clk 0:02:11.8]} 13... b5 {[%clk 0:02:52.2]}
14. Bb3 {[%clk 0:02:10.1]} 14... h5 {[%clk 0:02:50.9]} 15. Kb1 {[%clk
0:02:06.7]} 15... a5 {[%clk 0:02:48.8]} 16. Ng5 {[%clk 0:01:59.6]} 16... e6
{[%clk 0:02:48.1]} 17. Bxe6 {[%clk 0:01:57.2]} 17... fxe6 {[%clk 0:02:42.3]} 18.
Nxe6 {[%clk 0:01:58.1]} 18... Bxe6 {[%clk 0:02:38.3]} 19. Qxe6+ {[%clk 0:01:59]}
19... Kf8 {[%clk 0:02:38.2]} 20. Rd3 {[%clk 0:01:54.5]} 20... Bf6 {[%clk
0:02:35.9]} 21. Rf3 {[%clk 0:01:47.1]} 21... Kg7 {[%clk 0:02:35.9]} 22. Rd1
{[%clk 0:01:27]} 22... Rf8 {[%clk 0:02:29]} 23. Qxc6 {[%clk 0:01:23.7]} 23... b4
{[%clk 0:02:29]} 24. Qe4 {[%clk 0:00:47.4]} 24... a4 {[%clk 0:02:25.8]} 25. g4
{[%clk 0:00:45.4]} 25... Qe8 {[%clk 0:02:15.3]} 26. Qd3 {[%clk 0:00:44.4]} 26...
hxg4 {[%clk 0:02:12]} 27. hxg4 {[%clk 0:00:45.3]} 27... b3 {[%clk 0:02:12.1]}
28. cxb3 {[%clk 0:00:41.6]} 28... axb3 {[%clk 0:02:11.9]} 29. Qxb3 {[%clk
0:00:41.6]} 29... Rb8 {[%clk 0:02:10.8]} 30. Qd3 {[%clk 0:00:40.6]} 30... Qb5
{[%clk 0:02:06.3]} 31. Qxb5 {[%clk 0:00:40.1]} 31... Rxb5 {[%clk 0:02:06.2]} 32.
b3 {[%clk 0:00:40.7]} 32... Rd8 {[%clk 0:02:05.9]} 33. Rfd3 {[%clk 0:00:40.1]}
33... Rbd5 {[%clk 0:02:04.7]} 34. f3 {[%clk 0:00:40.6]} 34... Bxd4 {[%clk
0:02:03.6]} 35. a4 {[%clk 0:00:40.2]} 35... g5 {[%clk 0:02:03.6]} 36. Ka2 {[%clk
0:00:40.1]} 36... Kf6 {[%clk 0:02:03.8]} 37. b4 {[%clk 0:00:40.6]} 37... Ke5
{[%clk 0:02:03.7]} 38. Kb3 {[%clk 0:00:41.1]} 38... R5d6 {[%clk 0:02:01.3]} 39.
b5 {[%clk 0:00:40.1]} 39... Rb8 {[%clk 0:01:57.3]} 40. Re1+ {[%clk 0:00:38.7]}
40... Kd5 {[%clk 0:01:55.8]} 41. Re4 {[%clk 0:00:38.8]} 41... Kc5 {[%clk
0:01:56]} 42. Rd1 {[%clk 0:00:39.2]} 42... Rbd8 {[%clk 0:01:50.8]} 43. Rc1+
{[%clk 0:00:39.3]} 43... Kb6 {[%clk 0:01:51.1]} 44. Kb4 {[%clk 0:00:36]} 44...
Bf6 {[%clk 0:01:45.7]} 45. a5+ {[%clk 0:00:36.3]} 45... Kb7 {[%clk 0:01:46]} 46.
Rcc4 {[%clk 0:00:35]} 46... Rd4 {[%clk 0:01:43.5]} 47. Re6 {[%clk 0:00:27.5]}
47... Rxc4+ {[%clk 0:01:43.2]} 48. Kxc4 {[%clk 0:00:28.4]} 48... Rc8+ {[%clk
0:01:42.6]} 49. Kd5 {[%clk 0:00:28.4]} 49... Bc3 {[%clk 0:01:42.2]} 50. Re7+
{[%clk 0:00:27.3]} 50... Kb8 {[%clk 0:01:41.6]} 51. a6 {[%clk 0:00:26.7]} 51...
Ba5 {[%clk 0:01:40.4]} 52. b6 {[%clk 0:00:26.8]} 52... Rd8+ {[%clk 0:01:39.7]}
53. Kc6 {[%clk 0:00:26.6]} 53... Rc8+ {[%clk 0:01:37.3]} 54. Kb5 {[%clk
0:00:26.6]} 54... Bxb6 {[%clk 0:01:37.1]} 55. Kxb6 {[%clk 0:00:26.7]} 55... Rf8
{[%clk 0:01:36.7]} 56. Rg7 {[%clk 0:00:23.8]} 56... Rf6+ {[%clk 0:01:35.3]} 57.
Kb5 {[%clk 0:00:24.2]} 57... Rxf3 {[%clk 0:01:35.3]} 58. Rg8+ {[%clk 0:00:23.5]}
58... Ka7 {[%clk 0:01:35.1]} 59. Rg7+ {[%clk 0:00:23.1]} 59... Kb8 {[%clk
0:01:35.1]} 60. Rxg5 {[%clk 0:00:23.4]} 60... Rf1 {[%clk 0:01:32.7]} 61. Rg7
{[%clk 0:00:22.1]} 61... Rc1 {[%clk 0:01:31]} 62. a7+ {[%clk 0:00:21.6]} 62...
Ka8 {[%clk 0:01:31]} 63. Kb6 {[%clk 0:00:22.2]} 63... Rc6+ {[%clk 0:01:29.8]}
64. Kb5 {[%clk 0:00:21]} 64... Rc5+ {[%clk 0:01:29.8]} 65. Kb6 {[%clk
0:00:21.2]} 65... Rc6+ {[%clk 0:01:29.8]} 66. Kb5 {[%clk 0:00:21.6]} 66... Rc5+
{[%clk 0:01:29.9]} 67. Kb4 {[%clk 0:00:22.2]} 67... Rc4+ {[%clk 0:01:29.9]} 68.
Ka5 {[%clk 0:00:22.2]} 68... Rc5+ {[%clk 0:01:29.4]} 69. Kb6 {[%clk 0:00:15.9]}
69... Rc6+ {[%clk 0:01:28.1]} 1/2-1/2

[Event "*** Titled Tuesday Blitz"]
[Site "Chess.com"]
[Date "2021.04.06"]
[Round "4"]
[White "Smirnov_Pavel"]
[Black "kingnb"]
[Result "1/2-1/2"]
[WhiteElo "2865"]
[BlackElo "2574"]
[TimeControl "180+1"]
[EndTime "10:39:54 PDT"]
[Termination "Game drawn by repetition"]

1. d4 {[%clk 0:03:00.9]} 1... d6 {[%clk 0:03:00.3]} 2. e4 {[%clk 0:03:00.3]}
2... Nf6 {[%clk 0:03:00.5]} 3. Nc3 {[%clk 0:03:01.2]} 3... e5 {[%clk 0:03:01]}
4. Nf3 {[%clk 0:02:55.8]} 4... exd4 {[%clk 0:03:01]} 5. Nxd4 {[%clk 0:02:56.7]}
5... Be7 {[%clk 0:03:01.9]} 6. g3 {[%clk 0:02:55.8]} 6... O-O {[%clk 0:03:00.5]}
7. Bg2 {[%clk 0:02:56.3]} 7... Re8 {[%clk 0:03:01]} 8. O-O {[%clk 0:02:55.8]}
8... Bf8 {[%clk 0:02:59.9]} 9. h3 {[%clk 0:02:56.3]} 9... g6 {[%clk 0:02:57.2]}
10. b3 {[%clk 0:02:56.4]} 10... Bg7 {[%clk 0:02:56.7]} 11. Bb2 {[%clk 0:02:57]}
11... Nbd7 {[%clk 0:02:53.1]} 12. Qd2 {[%clk 0:02:55.9]} 12... Nc5 {[%clk
0:02:53.5]} 13. Rfe1 {[%clk 0:02:55.7]} 13... a5 {[%clk 0:02:54]} 14. Rad1
{[%clk 0:02:55.1]} 14... Bd7 {[%clk 0:02:54.4]} 15. a4 {[%clk 0:02:54]} 15...
Qc8 {[%clk 0:02:54]} 16. Kh2 {[%clk 0:02:53.8]} 16... c6 {[%clk 0:02:54.3]} 17.
f4 {[%clk 0:02:52.9]} 17... Qc7 {[%clk 0:02:54.3]} 18. Qf2 {[%clk 0:02:42.6]}
18... Rad8 {[%clk 0:02:52.2]} 19. Re2 {[%clk 0:01:53.4]} 19... Bg4 {[%clk
0:02:10.3]} 20. Nf3 {[%clk 0:01:25.2]} 20... Nfxe4 {[%clk 0:01:58]} 21. Nxe4
{[%clk 0:01:11.6]} 21... Nxe4 {[%clk 0:01:58.9]} 22. Rxe4 {[%clk 0:01:08.2]}
22... Bxf3 {[%clk 0:01:58.4]} 23. Rxe8+ {[%clk 0:01:02.9]} 23... Rxe8 {[%clk
0:01:57.8]} 24. Bxf3 {[%clk 0:00:56.3]} 24... Bxb2 {[%clk 0:01:57.1]} 25. Re1
{[%clk 0:00:56.5]} 25... Rxe1 {[%clk 0:01:47.3]} 26. Qxe1 {[%clk 0:00:54.2]}
26... Bf6 {[%clk 0:01:47.8]} 27. Kg2 {[%clk 0:00:52.1]} 27... d5 {[%clk
0:01:47.4]} 28. h4 {[%clk 0:00:51]} 28... h5 {[%clk 0:01:46.2]} 29. Qe8+ {[%clk
0:00:45.2]} 29... Kg7 {[%clk 0:01:46]} 30. Qe2 {[%clk 0:00:46.1]} 30... Qe7
{[%clk 0:01:13.3]} 31. Qxe7 {[%clk 0:00:42.3]} 31... Bxe7 {[%clk 0:01:14.2]} 32.
Be2 {[%clk 0:00:40.1]} 32... Kf6 {[%clk 0:01:14]} 33. Bd3 {[%clk 0:00:40.5]}
33... Ke6 {[%clk 0:01:12.6]} 34. Kf3 {[%clk 0:00:41.4]} 34... f5 {[%clk
0:01:08.1]} 35. c4 {[%clk 0:00:20.2]} 35... d4 {[%clk 0:00:35.2]} 36. Bf1 {[%clk
0:00:19.3]} 36... Kd6 {[%clk 0:00:31.8]} 37. Ke2 {[%clk 0:00:19.7]} 37... Bd8
{[%clk 0:00:28.5]} 38. Kd3 {[%clk 0:00:17.6]} 38... c5 {[%clk 0:00:28.4]} 39.
Bg2 {[%clk 0:00:16.3]} 39... b6 {[%clk 0:00:28.8]} 40. Bd5 {[%clk 0:00:16.1]}
40... Ke7 {[%clk 0:00:29.1]} 41. Bc6 {[%clk 0:00:16]} 41... Kf6 {[%clk
0:00:29.5]} 42. Bd5 {[%clk 0:00:15.6]} 42... Ke7 {[%clk 0:00:30]} 43. Ke2 {[%clk
0:00:15.6]} 43... Kf6 {[%clk 0:00:30.9]} 44. Kd3 {[%clk 0:00:15.8]} 44... Ke7
{[%clk 0:00:31.4]} 1/2-1/2

[Event "*** Titled Tuesday Blitz"]
[Site "Chess.com"]
[Date "2021.04.06"]
[Round "4"]
[White "Cuajada_Zero"]
[Black "FGHSMN"]
[Result "0-1"]
[WhiteElo "2315"]
[BlackElo "2583"]
[TimeControl "180+1"]
[EndTime "10:39:54 PDT"]
[Termination "FGHSMN won on time"]

1. d4 {[%clk 0:03:00.9]} 1... Nf6 {[%clk 0:02:59.2]} 2. Bg5 {[%clk 0:03:00]}
2... c5 {[%clk 0:02:58.1]} 3. Nc3 {[%clk 0:02:53]} 3... cxd4 {[%clk 0:02:55]} 4.
Qxd4 {[%clk 0:02:53.9]} 4... Nc6 {[%clk 0:02:53.4]} 5. Qh4 {[%clk 0:02:54]} 5...
e6 {[%clk 0:02:45.5]} 6. O-O-O {[%clk 0:02:46.6]} 6... Be7 {[%clk 0:02:43.6]} 7.
Nf3 {[%clk 0:02:05.3]} 7... d5 {[%clk 0:02:22.8]} 8. e4 {[%clk 0:01:37.3]} 8...
d4 {[%clk 0:02:17.6]} 9. e5 {[%clk 0:01:32.5]} 9... Nd7 {[%clk 0:02:12.8]} 10.
Bxe7 {[%clk 0:01:23.3]} 10... Qxe7 {[%clk 0:02:13.7]} 11. Qxe7+ {[%clk
0:01:20.2]} 11... Kxe7 {[%clk 0:02:11.4]} 12. Nxd4 {[%clk 0:01:20.1]} 12... Nxd4
{[%clk 0:02:09.3]} 13. Rxd4 {[%clk 0:01:21]} 13... Nxe5 {[%clk 0:02:09.9]} 14.
Be2 {[%clk 0:01:15.1]} 14... Bd7 {[%clk 0:02:07]} 15. Rhd1 {[%clk 0:01:11.6]}
15... Bc6 {[%clk 0:02:04.9]} 16. f3 {[%clk 0:01:07.8]} 16... g5 {[%clk
0:02:00.7]} 17. b4 {[%clk 0:00:59.9]} 17... Rac8 {[%clk 0:01:53.1]} 18. Kb2
{[%clk 0:00:30.9]} 18... b6 {[%clk 0:01:41.6]} 19. Kb3 {[%clk 0:00:10.8]} 19...
h5 {[%clk 0:01:37.9]} 20. h3 {[%clk 0:00:10]} 20... Rhg8 {[%clk 0:01:34.9]} 21.
a4 {[%clk 0:00:05.7]} 21... f5 {[%clk 0:01:33.8]} 22. a5 {[%clk 0:00:04.5]}
22... g4 {[%clk 0:01:25.3]} 23. hxg4 {[%clk 0:00:04]} 23... hxg4 {[%clk
0:01:23.8]} 24. f4 {[%clk 0:00:04.3]} 24... Ng6 {[%clk 0:01:15.4]} 25. axb6
{[%clk 0:00:03.9]} 25... axb6 {[%clk 0:01:15.3]} 26. g3 {[%clk 0:00:04.4]} 26...
Rgd8 {[%clk 0:01:05.6]} 27. Bb5 {[%clk 0:00:04.4]} 27... Rxd4 {[%clk 0:01:02.2]}
28. Rxd4 {[%clk 0:00:05.3]} 28... Bxb5 {[%clk 0:00:58.2]} 29. Nxb5 {[%clk
0:00:06.2]} 29... e5 {[%clk 0:00:51.7]} 30. fxe5 {[%clk 0:00:05.6]} 30... Nxe5
{[%clk 0:00:52.6]} 31. c4 {[%clk 0:00:05.6]} 31... Rh8 {[%clk 0:00:50.6]} 32. c5
{[%clk 0:00:04.2]} 32... bxc5 {[%clk 0:00:50.2]} 33. bxc5 {[%clk 0:00:04.3]}
33... Rh3 {[%clk 0:00:50.4]} 34. Nd6 {[%clk 0:00:04.1]} 34... Rxg3+ {[%clk
0:00:50]} 35. Kb4 {[%clk 0:00:04.6]} 35... Ke6 {[%clk 0:00:49.7]} 36. Kb5 {[%clk
0:00:02.7]} 36... Rb3+ {[%clk 0:00:49.5]} 37. Ka4 {[%clk 0:00:02.3]} 37... Rb1
{[%clk 0:00:46.6]} 38. Nb7 {[%clk 0:00:01.6]} 38... g3 {[%clk 0:00:45.8]} 39.
Nd8+ {[%clk 0:00:01.8]} 39... Ke7 {[%clk 0:00:41.1]} 40. c6 {[%clk 0:00:02.5]}
40... g2 {[%clk 0:00:38.8]} 41. c7 {[%clk 0:00:02.4]} 41... g1=Q {[%clk
0:00:39]} 42. c8=Q {[%clk 0:00:01.1]} 42... Qxd4+ {[%clk 0:00:38.8]} 0-1

[Event "*** Titled Tuesday Blitz"]
[Site "Chess.com"]
[Date "2021.04.06"]
[Round "4"]
[White "freshfoodcompany"]
[Black "volunteers1998"]
[Result "1/2-1/2"]
[WhiteElo "2426"]
[BlackElo "2228"]
[TimeControl "180+1"]
[EndTime "10:39:54 PDT"]
[Termination "Game drawn - insufficient material"]

1. d4 {[%clk 0:03:00.9]} 1... f5 {[%clk 0:02:58.4]} 2. Nf3 {[%clk 0:03:00.2]}
2... g6 {[%clk 0:02:55.2]} 3. g3 {[%clk 0:03:00]} 3... Nf6 {[%clk 0:02:53.9]} 4.
Bg2 {[%clk 0:02:58.9]} 4... Bg7 {[%clk 0:02:53.5]} 5. c4 {[%clk 0:02:56.6]} 5...
O-O {[%clk 0:02:52.8]} 6. O-O {[%clk 0:02:55.9]} 6... d6 {[%clk 0:02:51.9]} 7.
Nc3 {[%clk 0:02:54.8]} 7... Nc6 {[%clk 0:02:49.2]} 8. b3 {[%clk 0:02:52.6]} 8...
a6 {[%clk 0:02:45.2]} 9. Bb2 {[%clk 0:02:51.9]} 9... e5 {[%clk 0:02:36.6]} 10.
dxe5 {[%clk 0:02:39.7]} 10... dxe5 {[%clk 0:02:36.4]} 11. Nd5 {[%clk 0:02:34.5]}
11... e4 {[%clk 0:02:33.3]} 12. Nxf6+ {[%clk 0:02:13.8]} 12... Bxf6 {[%clk
0:02:32.3]} 13. Qxd8 {[%clk 0:02:10.7]} 13... Bxd8 {[%clk 0:02:28.6]} 14. Nd4
{[%clk 0:02:09.3]} 14... Nxd4 {[%clk 0:02:23.1]} 15. Bxd4 {[%clk 0:02:08.7]}
15... Be7 {[%clk 0:02:22]} 16. Rad1 {[%clk 0:02:06.4]} 16... Be6 {[%clk
0:02:17]} 17. Be5 {[%clk 0:02:04.3]} 17... c6 {[%clk 0:02:11.3]} 18. Bd6 {[%clk
0:02:02.8]} 18... Kf7 {[%clk 0:02:07.6]} 19. Rd4 {[%clk 0:01:56.1]} 19... Rad8
{[%clk 0:02:03.1]} 20. Rfd1 {[%clk 0:01:54.8]} 20... Bxd6 {[%clk 0:01:56.9]} 21.
Rxd6 {[%clk 0:01:55.7]} 21... Rxd6 {[%clk 0:01:54.5]} 22. Rxd6 {[%clk
0:01:56.6]} 22... Ke7 {[%clk 0:01:46.1]} 23. Rd4 {[%clk 0:01:53]} 23... Rd8
{[%clk 0:01:40.4]} 24. e3 {[%clk 0:01:51.7]} 24... c5 {[%clk 0:01:33.1]} 25.
Rxd8 {[%clk 0:01:51.4]} 25... Kxd8 {[%clk 0:01:33.6]} 26. f3 {[%clk 0:01:51.1]}
26... exf3 {[%clk 0:01:30.4]} 27. Bxf3 {[%clk 0:01:52]} 27... b5 {[%clk
0:01:27.2]} 28. cxb5 {[%clk 0:01:41.3]} 28... axb5 {[%clk 0:01:27]} 29. Kf2
{[%clk 0:01:40.8]} 29... Kd7 {[%clk 0:01:23.8]} 30. Ke2 {[%clk 0:01:40.2]} 30...
Kd6 {[%clk 0:01:21]} 31. Kd3 {[%clk 0:01:39.7]} 31... Ke5 {[%clk 0:01:20]} 32.
a4 {[%clk 0:01:15.8]} 32... c4+ {[%clk 0:01:16.4]} 33. bxc4 {[%clk 0:01:08.2]}
33... bxa4 {[%clk 0:01:12.7]} 34. Bd1 {[%clk 0:00:53.2]} 34... a3 {[%clk
0:01:09]} 35. Bb3 {[%clk 0:00:51.9]} 35... g5 {[%clk 0:00:56.7]} 36. Ba2 {[%clk
0:00:50.6]} 36... h5 {[%clk 0:00:53.7]} 37. Bb3 {[%clk 0:00:34.5]} 37... f4
{[%clk 0:00:46]} 38. exf4+ {[%clk 0:00:32.5]} 38... gxf4 {[%clk 0:00:44.7]} 39.
gxf4+ {[%clk 0:00:31.9]} 39... Kxf4 {[%clk 0:00:41.3]} 40. Kc3 {[%clk
0:00:31.9]} 40... h4 {[%clk 0:00:38.6]} 41. Kb4 {[%clk 0:00:28.4]} 41... Kf3
{[%clk 0:00:26.1]} 42. Kxa3 {[%clk 0:00:23.2]} 42... Kg2 {[%clk 0:00:25.7]} 43.
c5 {[%clk 0:00:22.7]} 43... Bd7 {[%clk 0:00:20.5]} 44. Bd5+ {[%clk 0:00:22.1]}
44... Kxh2 {[%clk 0:00:19.9]} 45. c6 {[%clk 0:00:21.4]} 45... Bxc6 {[%clk
0:00:18.7]} 46. Bxc6 {[%clk 0:00:21]} 46... Kg1 {[%clk 0:00:19.2]} 47. Bd5
{[%clk 0:00:21]} 47... h3 {[%clk 0:00:20]} 48. Kb3 {[%clk 0:00:20.5]} 48... h2
{[%clk 0:00:20.9]} 49. Kc3 {[%clk 0:00:20.6]} 49... h1=Q {[%clk 0:00:21.4]} 50.
Bxh1 {[%clk 0:00:20.8]} 1/2-1/2

[Event "*** Titled Tuesday Blitz"]
[Site "Chess.com"]
[Date "2021.04.06"]
[Round "4"]
[White "ehrenfeld"]
[Black "AlexOstrovskiy"]
[Result "0-1"]
[WhiteElo "2531"]
[BlackElo "2743"]
[TimeControl "180+1"]
[EndTime "10:39:55 PDT"]
[Termination "AlexOstrovskiy won by resignation"]

1. e4 {[%clk 0:03:00.9]} 1... d5 {[%clk 0:02:59.6]} 2. exd5 {[%clk 0:03:00.4]}
2... Nf6 {[%clk 0:02:59.5]} 3. d4 {[%clk 0:02:59.9]} 3... Bg4 {[%clk 0:02:59.4]}
4. Be2 {[%clk 0:02:59.9]} 4... Bxe2 {[%clk 0:02:58.1]} 5. Qxe2 {[%clk 0:03:00]}
5... Qxd5 {[%clk 0:02:58.8]} 6. Nf3 {[%clk 0:03:00.1]} 6... e6 {[%clk
0:02:56.5]} 7. O-O {[%clk 0:02:59.3]} 7... Nc6 {[%clk 0:02:55.7]} 8. c3 {[%clk
0:02:58.7]} 8... O-O-O {[%clk 0:02:51.9]} 9. Re1 {[%clk 0:02:58.1]} 9... Bd6
{[%clk 0:02:51]} 10. Nbd2 {[%clk 0:02:57.4]} 10... Qh5 {[%clk 0:02:33.4]} 11.
Nc4 {[%clk 0:02:54.7]} 11... Rhg8 {[%clk 0:02:33.6]} 12. Nfe5 {[%clk 0:02:40.2]}
12... Qxe2 {[%clk 0:02:27]} 13. Rxe2 {[%clk 0:02:39.5]} 13... Bxe5 {[%clk
0:02:25.4]} 14. Nxe5 {[%clk 0:02:37.8]} 14... Nxe5 {[%clk 0:02:23.3]} 15. Rxe5
{[%clk 0:02:37.7]} 15... Rd5 {[%clk 0:02:23.5]} 16. Re1 {[%clk 0:02:35.7]} 16...
g5 {[%clk 0:02:18.1]} 17. Be3 {[%clk 0:02:28]} 17... h5 {[%clk 0:02:15.2]} 18.
Rad1 {[%clk 0:02:24.8]} 18... b5 {[%clk 0:02:11.7]} 19. Bc1 {[%clk 0:02:16.6]}
19... Kd7 {[%clk 0:02:05.2]} 20. Rd3 {[%clk 0:02:15]} 20... g4 {[%clk
0:01:59.8]} 21. Rde3 {[%clk 0:02:09.1]} 21... a5 {[%clk 0:01:56.1]} 22. Re5
{[%clk 0:02:07.1]} 22... a4 {[%clk 0:01:54.9]} 23. Kf1 {[%clk 0:02:05.5]} 23...
c6 {[%clk 0:01:50.2]} 24. Bf4 {[%clk 0:02:01.1]} 24... Rxe5 {[%clk 0:01:41.8]}
25. Bxe5 {[%clk 0:01:57.3]} 25... Nd5 {[%clk 0:01:41.7]} 26. Bg3 {[%clk
0:01:42.5]} 26... a3 {[%clk 0:01:40.5]} 27. bxa3 {[%clk 0:01:34.3]} 27... Nxc3
{[%clk 0:01:35.1]} 28. Re5 {[%clk 0:01:31.2]} 28... f5 {[%clk 0:01:31.9]} 29.
Re3 {[%clk 0:01:20.5]} 29... Nd5 {[%clk 0:01:31.9]} 30. Rb3 {[%clk 0:01:17.2]}
30... f4 {[%clk 0:01:27.1]} 31. Bh4 {[%clk 0:01:17.3]} 31... Ra8 {[%clk
0:01:27.4]} 32. h3 {[%clk 0:01:11.6]} 32... Ra4 {[%clk 0:01:26.7]} 33. Rd3
{[%clk 0:01:09.5]} 33... Rc4 {[%clk 0:01:24.4]} 34. Bg5 {[%clk 0:01:06.1]} 34...
Rc2 {[%clk 0:01:17]} 35. hxg4 {[%clk 0:00:55.4]} 35... hxg4 {[%clk 0:01:17.9]}
36. a4 {[%clk 0:00:51.5]} 36... bxa4 {[%clk 0:01:13.1]} 37. a3 {[%clk 0:00:40]}
37... Rb2 {[%clk 0:01:05.9]} 38. Bh6 {[%clk 0:00:31.1]} 38... Ke7 {[%clk
0:00:49.7]} 39. g3 {[%clk 0:00:22]} 39... Rb1+ {[%clk 0:00:35.2]} 40. Ke2 {[%clk
0:00:20.1]} 40... f3+ {[%clk 0:00:35.8]} 41. Kd2 {[%clk 0:00:19.7]} 41... Rb2+
{[%clk 0:00:31]} 42. Ke1 {[%clk 0:00:17]} 42... Re2+ {[%clk 0:00:30.6]} 43. Kf1
{[%clk 0:00:17.1]} 43... Ra2 {[%clk 0:00:31.5]} 44. Ke1 {[%clk 0:00:12.4]} 44...
Nb6 {[%clk 0:00:28.4]} 45. Bd2 {[%clk 0:00:08.7]} 45... Ra1+ {[%clk 0:00:28.6]}
0-1

[Event "*** Titled Tuesday Blitz"]
[Site "Chess.com"]
[Date "2021.04.06"]
[Round "4"]
[White "ENajer77"]
[Black "TimofeevAr"]
[Result "1-0"]
[WhiteElo "2656"]
[BlackElo "2852"]
[TimeControl "180+1"]
[EndTime "10:39:57 PDT"]
[Termination "ENajer77 won by resignation"]

1. d4 {[%clk 0:03:00.9]} 1... Nf6 {[%clk 0:02:59.2]} 2. c4 {[%clk 0:03:00.5]}
2... b6 {[%clk 0:02:59.1]} 3. f3 {[%clk 0:02:59.9]} 3... Nc6 {[%clk 0:02:49.4]}
4. Nc3 {[%clk 0:02:54.9]} 4... e6 {[%clk 0:02:38.1]} 5. e4 {[%clk 0:02:53.1]}
5... Bb4 {[%clk 0:02:37.2]} 6. Ne2 {[%clk 0:02:52.5]} 6... O-O {[%clk
0:02:35.6]} 7. a3 {[%clk 0:02:52.7]} 7... Bxc3+ {[%clk 0:02:35.4]} 8. Nxc3
{[%clk 0:02:51.7]} 8... d6 {[%clk 0:02:33.4]} 9. Be3 {[%clk 0:02:50.2]} 9... e5
{[%clk 0:02:31.9]} 10. d5 {[%clk 0:02:46.2]} 10... Ne7 {[%clk 0:02:31.9]} 11.
Qd2 {[%clk 0:02:36.7]} 11... a5 {[%clk 0:02:29.7]} 12. O-O-O {[%clk 0:02:33.7]}
12... Nd7 {[%clk 0:02:28.4]} 13. g4 {[%clk 0:02:28.9]} 13... Nc5 {[%clk
0:02:27.6]} 14. Kb1 {[%clk 0:02:26.9]} 14... a4 {[%clk 0:02:19.7]} 15. h4 {[%clk
0:02:26.2]} 15... Nb3 {[%clk 0:02:19.6]} 16. Qc2 {[%clk 0:02:25]} 16... Bd7
{[%clk 0:02:19.1]} 17. h5 {[%clk 0:02:21.8]} 17... f6 {[%clk 0:02:13.4]} 18. g5
{[%clk 0:02:02.1]} 18... f5 {[%clk 0:02:13]} 19. h6 {[%clk 0:01:47.3]} 19... g6
{[%clk 0:02:12]} 20. Bd3 {[%clk 0:01:23.7]} 20... f4 {[%clk 0:02:10.6]} 21. Bf2
{[%clk 0:01:23.6]} 21... Nc8 {[%clk 0:02:08.8]} 22. Rhg1 {[%clk 0:01:21.3]}
22... Nc5 {[%clk 0:02:04]} 23. Qe2 {[%clk 0:01:16.8]} 23... Qe8 {[%clk
0:01:59.7]} 24. Ka2 {[%clk 0:01:13.2]} 24... Na7 {[%clk 0:01:56.9]} 25. Rc1
{[%clk 0:01:13.1]} 25... Rb8 {[%clk 0:01:51.1]} 26. Rc2 {[%clk 0:01:10.5]} 26...
Nb3 {[%clk 0:01:50.5]} 27. Nb5 {[%clk 0:01:05]} 27... Nxb5 {[%clk 0:01:43.5]}
28. cxb5 {[%clk 0:01:05.1]} 28... Nc5 {[%clk 0:01:40.8]} 29. Bc4 {[%clk
0:01:04.8]} 29... Ra8 {[%clk 0:01:40.2]} 30. Be1 {[%clk 0:01:02.8]} 30... Nb3
{[%clk 0:01:35.5]} 31. Bc3 {[%clk 0:00:45.8]} 31... Nc5 {[%clk 0:01:30.2]} 32.
Bb4 {[%clk 0:00:43.8]} 32... Qe7 {[%clk 0:01:28.5]} 33. Rc3 {[%clk 0:00:35.9]}
33... Rfb8 {[%clk 0:01:27.3]} 34. Kb1 {[%clk 0:00:34.5]} 34... Qe8 {[%clk
0:01:26.8]} 35. Ka2 {[%clk 0:00:33.2]} 35... Nb7 {[%clk 0:01:25.9]} 36. Bd3
{[%clk 0:00:32.3]} 36... Nc5 {[%clk 0:01:25.7]} 37. Bc4 {[%clk 0:00:32.5]} 37...
Ra7 {[%clk 0:01:25.6]} 38. Qf1 {[%clk 0:00:29]} 38... Rba8 {[%clk 0:01:24.3]}
39. Qe2 {[%clk 0:00:29.1]} 39... Nb3 {[%clk 0:01:20]} 40. Bxb3 {[%clk
0:00:20.3]} 40... axb3+ {[%clk 0:01:19.8]} 41. Kxb3 {[%clk 0:00:20.8]} 41...
Bxb5 {[%clk 0:01:18.8]} 42. Qd2 {[%clk 0:00:21.4]} 42... Qe7 {[%clk 0:01:03.5]}
43. Ka2 {[%clk 0:00:20]} 43... Ra4 {[%clk 0:01:02.2]} 44. Kb1 {[%clk 0:00:19.7]}
44... R8a7 {[%clk 0:00:59.9]} 45. Qc2 {[%clk 0:00:19.8]} 45... Kf7 {[%clk
0:00:52.9]} 46. Rc1 {[%clk 0:00:19.7]} 46... Qxg5 {[%clk 0:00:43.8]} 47. Rxc7+
{[%clk 0:00:19.4]} 47... Kf6 {[%clk 0:00:44.1]} 48. Bxd6 {[%clk 0:00:16.7]}
48... Qg3 {[%clk 0:00:38.5]} 49. Be7+ {[%clk 0:00:16.6]} 49... Kf7 {[%clk
0:00:37.8]} 50. Bh4+ {[%clk 0:00:16.6]} 1-0